bitfinex-derivatives/quotes_ETHF0:USTF0_20250726
["timestamp","ask_amount","ask_price","bid_price","bid_amount"]
[1753534832184,3.50872,3741.3,3741.2,2.52231032]
[1753534832382,6.71652,3741.3,3741.2,2.52231032]
[1753534832582,4.64102,3741.3,3741.2,2.75341032]
[1753534835582,5.90062,3741.3,3741.2,2.52231032]
[1753534835787,6.33192,3741.3,3741.2,2.52231032]
[1753534839181,3.12412,3741.3,3741.2,2.52231032]
[1753534842481,6.71652,3741.3,3741.2,2.52231032]
[1753534842689,6.33192,3741.3,3741.2,2.52231032]
[1753534843188,6.71652,3741.3,3741.2,2.52231032]
[1753534847691,3.50872,3741.3,3741.2,2.52231032]
[1753534847991,6.71652,3741.3,3741.2,2.52231032]
[1753534848790,6.71652,3741.3,3741.2,2.15261032]
[1753534848995,6.71652,3741.3,3741.2,0.93731032]
[1753534849391,6.71652,3741.3,3741.2,2.16411032]
[1753534850292,6.71652,3741.3,3741.2,0.01871032]
[1753534850596,6.71652,3741.3,3741.2,2.12391032]
[1753534852903,6.71652,3741.3,3741.2,1.37221032]
[1753534853102,6.71652,3741.3,3741.2,0.89711032]
[1753534858198,6.71652,3741.3,3741.2,2.46461032]
[1753534860598,4.64102,3741.3,3741.2,2.67761032]
[1753534860805,4.27652,3741.3,3741.2,2.67761032]
[1753534862608,0.5343,3741.3,3741.2,2.67761032]
[1753534862904,3.2078,3741.7,3741.2,2.67761032]
[1753534862905,0.5562,3741.5,3741.4,0.8324]
[1753534863104,0.5562,3741.5,3741.4,2.6589]
[1753534864106,1.09059,3741.5,3741.4,2.6589]
[1753534864308,0.5562,3741.5,3741.4,2.6589]
[1753534864607,0.53439,3741.5,3741.4,2.6589]
[1753534864806,2.69008,3741.6,3741.5,2.4459]
[1753534865202,3.10328,3741.6,3741.5,2.4459]
[1753534865606,3.46498,3741.6,3741.5,1.3535]
[1753534865806,3.465,3741.4,3741.3,0.3573]
[1753534866010,3.46502,3741.3,3741.2,0.01871032]
[1753534866211,6.67282,3741.3,3741.2,0.01871032]
[1753534867210,6.67282,3741.3,3741.2,0.89711032]
[1753534870412,6.67282,3741.3,3741.2,1.64881032]
[1753534870711,6.67282,3741.3,3741.2,0.89711032]
[1753534871106,6.67282,3741.3,3741.2,0.01871032]
[1753534871107,11.67282,3741.3,3741.2,0.01871032]
[1753534872409,6.67282,3741.3,3741.2,0.01871032]
[1753534873315,11.67282,3741.3,3741.2,0.01871032]
[1753534873513,12.39140146,3741.3,3741.2,3.2e-07]
[1753534874415,7.39140146,3741.3,3741.2,3.2e-07]
[1753534877321,6.67282,3741.3,3741.2,3.2e-07]
[1753534877517,7.39115434,3741.3,3741.2,3.2e-07]
[1753534878317,7.39115434,3741.3,3739.9,0.53462]
[1753534878318,2.8013,3740.6,3740.5,0.89]
[1753534878624,6.54362,3740.6,3740.5,0.89]
[1753534879121,6.54362,3740.6,3740.5,2.4505]
[1753534879324,6.54362,3740.6,3740.5,0.89]
[1753534879514,6.54362,3740.6,3740.5,0.3483]
[1753534879923,6.54362,3740.6,3740.5,0.89]
[1753534880422,1.23745,3740.4,3740.3,1.639]
[1753534880617,3.33585,3740.4,3740.3,1.639]
[1753534881421,3.33585,3740.4,3740.3,0.89]
[1753534881820,3.33592,3739.9,3739.8,2.6483689]
[1753534882019,6.54372,3739.9,3739.8,2.6483689]
[1753534882615,6.54372,3739.9,3739.8,1.5900689]
[1753534882822,6.54372,3739.9,3739.8,1.0878689]
[1753534883318,6.54372,3739.9,3739.8,0.1978689]
[1753534885023,6.54372,3739.9,3739.8,2.6483689]
[1753534885024,19.34572,3739.9,3739.8,2.6483689]
[1753534885722,6.54372,3739.9,3739.8,2.6483689]
[1753534886528,3.7288,3739.9,3739.8,2.8416689]
[1753534886732,3.2078,3739.9,3739.8,2.8416689]
[1753534887224,3.74242,3739.9,3739.8,2.8416689]
[1753534887419,3.2078,3739.9,3739.8,2.8416689]
[1753534887618,3.7288,3739.9,3739.8,2.8416689]
[1753534888227,5.31352,3739.9,3739.8,2.8416689]
[1753534888830,5.80802,3739.9,3739.8,2.6483689]
[1753534889030,6.54372,3739.9,3739.8,0.1978689]
[1753534889628,6.54372,3739.9,3739.8,1.0878689]
[1753534890029,6.54372,3739.9,3739.8,0.5461689]
[1753534890331,6.54372,3739.9,3739.8,0.1978689]
[1753534890631,6.54372,3739.9,3739.8,1.8368689]
[1753534891032,6.54372,3739.9,3739.8,2.3390689]
[1753534891533,6.54372,3739.9,3739.8,1.5900689]
[1753534892533,6.54372,3739.9,3739.8,0.5461689]
[1753534892934,6.54372,3739.9,3739.8,0.1978689]
[1753534893134,1.73209,3739.4,3739.3,1.35320001]
[1753534893337,6.71069,3739.4,3739.3,2.10220001]
[1753534894239,6.15019,3739.4,3739.3,2.10220001]
[1753534895032,3.2078,3739.4,3739.3,2.29550001]
[1753534895541,0.53465,3739.8,3739.3,6.6945]
[1753534895749,3.74242,3739.9,3739.8,2.3019]
[1753534895938,4.26342,3739.9,3739.8,2.4952]
[1753534897146,4.62422,3739.9,3739.8,2.4952]
[1753534897346,6.71062,3739.9,3739.8,2.3019]
[1753534898347,0.3608,3739.4,3739.3,1.1598]
[1753534898544,2.66629,3739.4,3739.3,1.1598]
[1753534898841,0.8818,3739.4,3739.3,1.3531]
[1753534899145,0.521,3739.4,3739.3,2.4952]
[1753534899549,1.05569,3739.4,3739.3,2.4952]
[1753534899847,1.41649,3739.4,3739.3,2.4952]
[1753534900244,2.66629,3739.4,3739.3,2.4952]
[1753534902351,1.41649,3739.4,3739.3,2.4952]
[1753534902751,1.05569,3739.4,3739.3,2.4952]
[1753534906840,3.52549,3739.4,3739.3,2.3019]
[1753534907852,2.99519,3739.4,3739.3,2.3019]
[1753534908053,1.79289,3739.4,3739.3,2.4931]
[1753534908255,1.41649,3739.4,3739.3,2.4931]
[1753534909252,1.05569,3739.4,3739.3,2.4931]
[1753534911252,3.53339,3739.4,3739.3,2.3019]
[1753534912253,3.52984,3739.1,3739.0,5.4892]
[1753534912553,3.52984,3739.1,3739.0,2.2814]
[1753534913059,3.52984,3739.1,3739.0,1.9755]
[1753534913466,1.77577,3738.9,3738.8,1.617]
[1753534913759,3.52987,3738.9,3738.8,1.617]
[1753534914153,2.8235,3738.7,3738.6,1.1315]
[1753534914356,3.5299,3738.7,3738.6,1.1315]
[1753534914555,3.5299,3738.7,3738.6,1.617]
[1753534915260,6.7377,3738.7,3738.6,1.617]
[1753534918661,2.1228,3738.3,3738.2,1.35982534]
[1753534918861,1.05225,3738.3,3738.2,1.35982534]
[1753534919059,1.05225,3738.3,3738.2,2.49132534]
[1753534919958,2.65765,3738.3,3738.2,2.49132534]
[1753534920262,3.03405,3738.3,3738.2,2.49132534]
[1753534921158,3.52995,3738.3,3738.2,2.30012534]
[1753534922463,3.2078,3738.7,3738.2,2.30012534]
[1753534922756,2.4777,3739.8,3739.7,0.3605]
[1753534922958,3.01234,3739.8,3739.7,0.3605]
[1753534923763,2.4777,3739.8,3739.7,0.3605]
[1753534924063,3.01234,3739.8,3739.7,0.3605]
[1753534924459,1.9818,3739.8,3739.7,0.3605]
[1753534924659,1.2238,3739.8,3739.7,0.8779]
[1753534924856,3.52974,3739.8,3739.7,0.8779]
[1753534925060,2.9951,3739.8,3739.7,0.3605]
[1753534925362,3.52974,3739.8,3739.7,0.3605]
[1753534926464,2.9951,3739.8,3739.7,0.3605]
[1753534926665,3.52974,3739.8,3739.7,0.3605]
[1753534927563,2.9951,3739.8,3739.7,0.3605]
[1753534927863,1.2367,3740.1,3739.7,0.8779]
[1753534928069,2.9951,3740.1,3740.0,0.8779]
[1753534928657,3.5297,3740.1,3740.0,0.8779]
[1753534928857,3.5297,3740.1,3740.0,0.3605]
[1753534929170,2.9951,3740.1,3740.0,0.3605]
[1753534929966,3.5297,3740.1,3740.0,0.3605]
[1753534930459,3.52969,3740.1,3740.0,0.3605]
[1753534931262,0.53461,3740.0,3739.9,3.2078]
[1753534931567,3.52971,3740.0,3739.9,3.2078]
[1753534931764,3.52971,3740.0,3739.9,3.5683]
[1753534932266,2.9951,3740.0,3739.9,3.5683]
[1753534932970,3.52971,3740.0,3739.9,3.5683]
[1753534933971,2.9951,3740.0,3739.9,3.5683]
[1753534934170,2.9951,3740.0,3739.9,4.0857]
[1753534934570,2.9951,3740.0,3739.9,4.2219]
[1753534935275,1.2238,3740.0,3739.9,4.2219]
[1753534935569,1.2469,3740.2,3740.1,1.0126]
[1753534935768,1.2469,3740.2,3740.1,1.5728]
[1753534935971,1.2469,3740.2,3740.1,1.0382]
[1753534936368,1.2469,3740.2,3740.1,1.5728]
[1753534936562,1.2469,3740.2,3740.1,1.0382]
[1753534936960,1.2469,3740.2,3740.1,1.5728]
[1753534937571,0.53457,3740.3,3740.2,1.0382]
[1753534937871,4.54391,3741.2,3740.4,1.54285]
[1753534938071,0.53453,3740.6,3740.5,0.5833]
[1753534938275,1.78143,3740.6,3740.5,1.0214]
[1753534939269,3.54233,3740.6,3740.5,0.4842]
[1753534939474,3.54235,3740.4,3740.3,3.2078]
[1753534939964,3.54235,3740.4,3740.3,3.5919]
[1753534940367,3.54235,3740.4,3740.3,3.2078]
[1753534940572,1.77502,3739.9,3739.8,3.2078]
[1753534940878,3.54245,3739.7,3739.6,0.4579]
[1753534941973,3.54248,3739.5,3739.4,3.5919]
[1753534942478,3.54248,3739.5,3739.4,3.692]
[1753534945880,3.54248,3739.5,3739.4,3.5919]
[1753534946878,3.54248,3739.5,3739.4,3.2078]
[1753534947083,1.33658,3739.9,3739.2,0.0263]
[1753534947084,3.54251,3739.3,3739.2,0.4104]
[1753534948182,3.54254,3739.1,3739.0,3.2078]
[1753534948387,3.5426,3738.7,3738.6,0.4579]
[1753534948987,3.5426,3738.7,3738.6,0.4842]
[1753534951591,3.5426,3738.7,3738.6,1.0214]
[1753534952183,3.5426,3738.7,3738.6,0.4842]
[1753534952388,1.77522,3738.5,3738.4,3.6182]
[1753534952589,3.54262,3738.5,3738.4,3.6182]
[1753534953591,3.53829649,3738.5,3738.4,3.5919]
[1753534953993,3.54265,3738.3,3738.2,0.01872534]
[1753534954293,3.54265,3738.3,3738.2,5.34e-06]
[1753534954693,3.54265,3738.3,3737.8,0.19797477]
[1753534954694,3.54271,3737.9,3737.8,0.19797477]
[1753534957087,1.40611,3737.2,3737.1,0.3841]
[1753534957295,3.0078,3737.1,3737.0,1.5362]
[1753534957687,1.2469,3737.1,3737.0,1.5362]
[1753534958386,1.2469,3737.1,3737.0,2.07124]
[1753534958895,3.0078,3737.4,3737.3,2.07119]
[1753534959396,3.0078,3737.4,3737.3,5.27899]
[1753534960194,2.4873,3737.4,3737.3,5.27899]
[1753534960398,1.2469,3737.6,3737.5,2.07117]
[1753534961094,1.2469,3738.4,3738.0,0.7128]
[1753534961298,1.2469,3738.9,3738.8,1.25]
[1753534961501,1.2866,3738.9,3738.8,1.5362]
[1753534961702,3.54257,3738.9,3738.8,0.999]
[1753534961895,3.0078,3738.9,3738.8,0.999]
[1753534962095,3.54257,3738.9,3738.8,0.999]
[1753534962295,3.0078,3738.9,3738.8,0.999]
[1753534962595,3.0078,3738.9,3738.8,1.53378]
[1753534962997,3.0078,3738.9,3738.8,0.999]
[1753534963301,3.54257,3738.9,3738.8,0.999]
[1753534963905,3.0078,3738.9,3738.8,0.999]
[1753534964102,0.5338,3739.3,3739.0,1.5362]
[1753534964399,0.5338,3739.7,3739.4,1.28959]
[1753534964599,1.9535,3739.7,3739.6,1.4866]
[1753534964802,2.4745,3739.7,3739.6,1.4866]
[1753534964992,3.00915,3739.7,3739.6,1.4866]
[1753534965192,3.57015,3739.7,3739.6,0.9643]
[1753534966299,3.0355,3739.7,3739.6,0.9643]
[1753534966499,3.57015,3739.7,3739.6,0.9643]
[1753534966802,3.0355,3739.7,3739.6,1.4866]
[1753534967000,3.0355,3739.7,3739.6,2.02127]
[1753534967205,0.579,3739.9,3739.8,1.21404]
[1753534967402,2.6474,3739.9,3739.8,1.94574]
[1753534967804,0.761,3739.9,3739.8,1.94574]
[1753534968009,0.2,3739.9,3739.8,1.94574]
[1753534968804,2.0684,3740.5,3740.4,1.94565]
[1753534969104,2.4474,3740.6,3740.5,1.4111]
[1753534969300,3.50292,3740.6,3740.5,0.8888]
[1753534969504,3.50292,3740.6,3740.5,0.8823]
[1753534969904,3.50292,3740.6,3740.5,0.5473]
[1753534970206,3.50292,3740.6,3740.5,0.3444]
[1753534970607,3.50292,3740.6,3740.5,0.5473]
[1753534971009,3.50292,3740.6,3740.5,0.8719]
[1753534971208,2.9684,3740.6,3740.5,0.8888]
[1753534971902,3.50292,3740.6,3740.5,0.8888]
[1753534972199,2.9684,3740.6,3740.5,0.8888]
[1753534972808,3.50292,3740.6,3740.5,0.8888]
[1753534973204,2.9684,3740.6,3740.5,0.8888]
[1753534973411,1.2612,3740.6,3740.5,1.94564]
[1753534973606,1.2612,3740.6,3740.4,3.2078]
[1753534973607,2.9684,3740.9,3740.8,1.4111]
[1753534973804,2.9684,3740.9,3740.8,1.94559]
[1753534974300,2.9684,3740.9,3740.8,1.4111]
[1753534974505,3.50288,3740.9,3740.8,0.5473]
[1753534974703,3.50288,3740.9,3740.8,0.3444]
[1753534975310,3.50288,3740.9,3740.8,0.5473]
[1753534976706,3.50288,3740.9,3740.8,0.8888]
[1753534978712,1.2612,3741.1,3740.8,1.2017]
[1753534979012,2.9684,3741.1,3741.0,1.94557]
[1753534979207,3.50285,3741.1,3741.0,0.8888]
[1753534979511,2.9684,3741.1,3741.0,0.8888]
[1753534980206,3.50285,3741.1,3741.0,0.8888]
[1753534980608,2.9684,3741.1,3741.0,1.42327]
[1753534981211,0.018,3741.3,3741.2,1.94554]
[1753534981509,0.018,3741.3,3741.2,5.15334]
[1753534981704,1.25535,3741.9,3741.7,0.669]
[1753534981705,1.1862,3741.8,3741.7,0.669]
[1753534981911,2.4474,3741.8,3741.7,5.12487]
[1753534982107,2.9684,3741.8,3741.7,4.61407]
[1753534982412,3.50279,3741.5,3741.3,3.2078]
[1753534982608,1.1862,3741.4,3741.3,0.87882]
[1753534982806,1.1862,3741.4,3741.3,1.40632]
[1753534983007,1.1862,3741.4,3741.3,4.61412]
[1753534983210,1.2612,3741.4,3741.3,5.12492]
[1753534983506,1.6402,3741.4,3741.3,5.12492]
[1753534983907,2.1019,3741.4,3741.3,4.5905]
[1753534984100,3.50281,3741.4,3741.3,4.5905]
[1753534984609,2.9684,3741.4,3741.3,5.12492]
[1753534986504,3.50281,3741.4,3741.3,4.5905]
[1753534986711,3.50281,3741.4,3741.3,4.0797]
[1753534987307,3.50281,3741.4,3741.3,4.61412]
[1753534987506,3.50281,3741.4,3741.3,4.0797]
[1753534988112,3.50281,3741.4,3741.3,0.8719]
[1753534988312,3.50281,3741.4,3741.3,4.0797]
[1753534988714,3.50281,3741.4,3741.3,4.61412]
[1753534989114,3.50281,3741.4,3741.3,4.0797]
[1753534989614,3.50281,3741.4,3741.3,4.61412]
[1753534989913,2.9684,3741.4,3741.3,4.61412]
[1753534990412,3.50281,3741.4,3741.3,4.0797]
[1753534991812,3.50281,3741.4,3741.3,4.61412]
[1753534992513,2.9684,3741.4,3741.3,4.61412]
[1753534993112,0.2,3741.9,3741.3,4.0797]
[1753534993320,2.9684,3741.5,3741.4,0.8719]
[1753534993508,1.72061,3741.4,3741.3,3.2078]
[1753534993816,3.50284,3741.2,3741.1,1.08175]
[1753534994018,3.50284,3741.2,3741.1,0.5473]
[1753534994321,2.9684,3741.2,3741.1,1.40635]
[1753534995023,2.9684,3741.2,3741.1,1.89985]
[1753534995316,3.50284,3741.2,3741.1,0.8719]
[1753534995920,3.50284,3741.2,3741.1,0.5473]
[1753534997117,3.41607,3741.0,3740.9,3.7641]
[1753534997317,1.1566,3740.6,3740.5,4.29863]
[1753534997623,2.8816,3740.6,3740.5,4.59553]
[1753534998125,2.8816,3740.6,3740.5,4.061]
[1753534998618,3.41612,3740.6,3740.5,3.2078]
[1753534999218,3.41612,3740.6,3740.5,3.7641]
[1753534999420,3.41612,3740.6,3740.5,3.2078]
[1753535001818,2.8816,3740.6,3740.5,3.2078]
[1753535002021,2.8816,3740.6,3740.5,5.08904]
[1753535003117,3.41612,3740.6,3740.5,4.5545]
[1753535003315,3.41612,3740.6,3740.5,4.061]
[1753535004522,3.41612,3740.6,3740.5,0.8532]
[1753535004721,3.41612,3740.6,3740.5,4.061]
[1753535005019,3.41612,3740.6,3740.5,4.59554]
[1753535005219,2.8816,3740.6,3740.5,4.061]
[1753535006228,2.8816,3740.6,3740.5,4.59554]
[1753535010325,0.5091,3740.9,3740.8,1.85789]
[1753535010520,1.6882,3741.3,3741.2,1.37084]
[1753535010724,1.6882,3741.3,3741.2,1.85784]
[1753535010922,2.35,3741.6,3741.5,1.85779]
[1753535011227,0.5091,3741.6,3741.5,5.06559]
[1753535011622,1.1934,3741.6,3741.5,5.06559]
[1753535012532,2.0122,3741.6,3741.5,5.06559]
[1753535013354,1.1934,3741.6,3741.5,5.06559]
[1753535013551,0.5316,3741.8,3741.5,5.06559]
[1753535013552,1.3566,3741.9,3741.8,1.19165]
[1753535013732,1.8882,3741.9,3741.8,1.85775]
[1753535014337,1.3934,3741.9,3741.8,1.85775]
[1753535014536,0.2,3741.9,3741.8,1.85775]
[1753535015731,1.3934,3741.9,3741.8,1.85775]
[1753535015926,2.55,3741.9,3741.8,1.85775]
[1753535016132,3.0816,3741.9,3741.8,0.53435]
[1753535016935,2.8816,3741.8,3741.7,0.53436]
[1753535017939,2.8816,3741.8,3741.7,1.08416]
[1753535018230,2.8816,3741.8,3741.7,1.37076]
[1753535018439,2.8816,3741.8,3741.7,1.85776]
[1753535019330,2.8816,3741.8,3741.7,1.37076]
[1753535020834,2.8816,3741.8,3741.7,1.85776]
[1753535021539,2.8816,3741.8,3741.7,1.37076]
[1753535021729,0.53442,3741.3,3739.6,6.22036059]
[1753535021929,2.55182,3741.7,3739.4,0.89909]
[1753535021930,0.53465,3739.8,3739.4,0.89909]
[1753535022137,3.30807362,3739.7,3739.5,1.9391]
[1753535022337,2.77341362,3739.7,3739.3,0.7264]
[1753535022536,0.53469,3739.4,3739.3,1.0971]
[1753535022741,0.53469,3739.4,3739.3,2.4545]
[1753535023934,0.53469,3739.4,3739.3,2.9857]
[1753535024538,1.55419,3739.4,3739.3,2.9857]
[1753535032444,1.37699,3739.4,3739.3,2.9857]
[1753535032841,0.5588,3739.4,3739.3,2.9857]
[1753535033045,2.95061362,3739.7,3739.3,2.9857]
[1753535033046,2.95061362,3739.7,3739.3,1.2127]
[1753535033240,0.133,3739.6,3739.3,1.2127]
[1753535033640,0.53469,3739.4,3739.3,3.1696]
[1753535034241,0.53469,3739.5,3739.4,2.753]
[1753535034441,0.53469,3739.5,3739.4,3.271]
[1753535034842,0.66769,3739.5,3739.4,3.271]
[1753535035142,0.88059,3739.5,3739.4,3.271]
[1753535037250,2.90641362,3739.7,3739.5,1.9569]
[1753535037550,0.53462,3739.9,3739.8,0.4038]
[1753535037750,0.53462,3739.9,3739.8,2.5074]
[1753535037959,0.53462,3739.9,3739.8,3.271]
[1753535038449,0.66762,3740.0,3739.9,3.271]
[1753535038640,3.7424,3740.1,3739.9,3.80562]
[1753535038950,3.8754,3740.1,3740.0,3.271]
[1753535039150,4.0883,3740.1,3740.0,3.271]
[1753535039543,4.5847,3740.1,3740.0,3.271]
[1753535039945,0.1772,3740.4,3740.1,1.33649]
[1753535039946,2.36356,3740.4,3740.1,1.33649]
[1753535040145,2.36356,3740.4,3740.0,1.2816]
[1753535040146,1.88,3741.5,3741.4,0.6045]
[1753535040345,5.75529,3741.5,3741.4,0.6045]
[1753535040546,0.9614,3741.2,3741.1,1.3681]
[1753535040748,1.88,3741.2,3741.1,1.7604]
[1753535040950,1.6671,3741.4,3741.3,1.84852]
[1753535041154,1.6671,3741.5,3741.4,3.4016]
[1753535041352,1.88,3741.5,3741.4,3.271]
[1753535042052,1.88,3741.5,3741.4,3.80541]
[1753535043044,1.6671,3741.8,3741.7,1.3141]
[1753535043248,1.88,3741.8,3741.7,3.271]
[1753535043956,2.41435,3741.8,3741.7,3.271]
[1753535044653,0.9614,3741.3,3741.2,1.1559]
[1753535044851,1.88,3741.3,3741.2,0.3923]
[1753535045347,2.41442,3741.3,3741.2,0.9968]
[1753535045957,1.88,3741.3,3741.2,3.271]
[1753535046454,2.41442,3741.3,3741.2,3.271]
[1753535049056,1.88,3741.3,3741.2,3.271]
[1753535049256,1.88,3741.3,3741.2,3.80544]
[1753535049750,0.2,3741.9,3741.7,1.3141]
[1753535049958,0.2,3741.9,3741.8,3.271]
[1753535050359,0.2,3741.9,3741.8,3.80535]
[1753535050658,0.7356,3741.9,3741.8,3.271]
[1753535050853,0.7356,3741.9,3741.8,3.80535]
[1753535051251,0.2,3741.9,3741.8,3.80535]
[1753535051456,0.5356,3742.3,3742.2,3.80528]
[1753535051855,1.4542,3742.5,3742.4,3.271]
[1753535052053,1.6671,3742.5,3742.4,3.271]
[1753535052257,2.41425,3742.5,3742.4,3.271]
[1753535052455,2.41424,3742.6,3742.5,3.271]
[1753535053866,2.54734,3742.6,3742.5,0.6045]
[1753535055164,2.41424,3742.6,3742.5,1.9186]
[1753535055557,2.41424,3742.6,3742.5,1.4006]
[1753535056156,0.53429,3742.3,3742.1,3.2078]
[1753535056357,1.61514,3741.9,3741.8,1.8638]
[1753535056663,2.60344,3741.9,3741.8,2.2887]
[1753535056867,2.60344,3741.9,3741.8,1.467]
[1753535057765,2.60344,3741.9,3741.8,2.0267]
[1753535057967,2.60344,3741.9,3741.8,3.4695]
[1753535064869,2.0691,3741.9,3741.8,3.4695]
[1753535065163,0.1637,3742.3,3742.2,1.4056]
[1753535065375,3.2078,3742.6,3742.5,2.0224]
[1753535065665,3.74204,3742.6,3742.5,3.4695]
[1753535066359,4.28014,3742.6,3742.5,3.4695]
[1753535066559,5.78634,3742.6,3742.5,3.4695]
[1753535067369,0.5381,3742.6,3742.5,3.4695]
[1753535067872,1.07234,3742.6,3742.5,3.4695]
[1753535068274,0.5381,3742.6,3742.5,4.00375]
[1753535068467,1.07234,3742.6,3742.5,3.4695]
[1753535068866,0.53423,3742.7,3742.5,1.93985]
[1753535069062,0.9824,3742.9,3742.7,2.0224]
[1753535069267,2.3166,3742.9,3742.8,3.4695]
[1753535069572,0.5381,3742.9,3742.8,3.4695]
[1753535069871,3.2078,3743.1,3742.8,3.4695]
[1753535070069,3.2078,3743.1,3742.1,1.33577]
[1753535070070,5.52438,3743.1,3743.0,1.4056]
[1753535070268,6.27355956,3743.1,3743.0,3.4695]
[1753535071268,3.95697956,3743.1,3743.0,4.00368]
[1753535071471,0.53411,3743.5,3743.0,5.2717]
[1753535071770,1.5205,3743.6,3743.5,3.4695]
[1753535071965,3.05486423,3743.6,3743.5,3.4695]
[1753535072171,3.30616423,3743.6,3743.5,3.4695]
[1753535072573,3.46326423,3743.6,3743.5,0.84550059]
[1753535072769,3.46326423,3743.6,3743.5,0.22440059]
[1753535073078,3.46326423,3743.6,3743.2,0.6211]
[1753535073079,0.7894,3743.3,3743.0,3.2078]
[1753535073376,2.14227,3743.1,3743.0,4.0537]
[1753535073571,2.14227,3743.1,3743.0,6.0562]
[1753535073776,2.14227,3743.1,3743.0,3.4695]
[1753535073978,2.14227,3743.1,3743.0,1.467]
[1753535074286,2.29937,3743.1,3743.0,0.6211]
[1753535074984,2.14227,3743.1,3743.0,1.0421]
[1753535075283,2.14227,3743.1,3743.0,3.4695]
[1753535075590,1.6081,3743.1,3743.0,3.4695]
[1753535075883,0.53415,3743.2,3743.1,1.4056]
[1753535076082,1.07225,3743.2,3743.1,1.4056]
[1753535076276,1.89095,3743.2,3743.1,5.1356]
[1753535076475,1.89095,3743.2,3743.1,7.1995]
[1753535076476,2.14225,3743.2,3743.1,7.1995]
[1753535080277,1.07225,3743.2,3743.1,7.1995]
[1753535081287,1.6081,3743.8,3743.7,1.4056]
[1753535081582,0.73406,3743.9,3743.7,4.8256]
[1753535081892,0.73406,3743.9,3743.8,3.4695]
[1753535082183,2.34216,3743.9,3743.8,7.5795]
[1753535083178,0.018,3744.3,3744.2,1.4056]
[1753535083383,0.018,3744.3,3744.2,7.58351]
[1753535085579,0.018,3744.3,3744.2,7.0495]
[1753535086285,0.018,3744.3,3744.2,7.58351]
[1753535086488,0.018,3744.3,3744.2,10.79131]
[1753535090091,0.5357,3745.1,3745.0,3.2935]
[1753535090290,1.7711,3745.1,3745.0,7.2035]
[1753535090491,2.30498,3745.1,3745.0,7.2035]
[1753535090695,2.61558,3745.1,3745.0,7.2035]
[1753535091495,0.7298,3745.1,3745.0,7.2035]
[1753535091888,0.7298,3745.2,3745.1,3.2935]
[1753535092091,0.1513,3745.7,3745.6,3.2935]
[1753535092092,2.0817,3745.7,3745.6,3.2935]
[1753535092290,2.61549,3745.7,3745.6,6.7635]
[1753535092695,1.7711,3745.7,3745.6,6.7635]
[1753535092898,2.233,3745.7,3745.6,4.0965]
[1753535093196,2.76679,3745.7,3745.6,4.0965]
[1753535093496,2.0817,3745.7,3745.6,6.7635]
[1753535093693,0.53379,3745.8,3745.7,3.2935]
[1753535093998,3.2078,3746.3,3745.8,3.2935]
[1753535094192,3.2078,3746.3,3745.8,7.26728]
[1753535095499,3.74151,3746.3,3745.8,7.26728]
[1753535095692,3.2078,3746.3,3745.8,7.26728]
[1753535096897,3.74152,3746.3,3745.8,7.26728]
[1753535097200,0.9934,3746.4,3745.8,7.26728]
[1753535097499,0.53372,3746.3,3745.8,7.26728]
[1753535098195,0.53372,3746.2,3745.8,7.26728]
[1753535098894,0.1941,3746.9,3746.1,1.221]
[1753535099100,2.0817,3746.2,3746.1,9.9243]
[1753535099593,2.0817,3746.2,3746.1,11.24504]
[1753535100490,2.0817,3746.2,3746.1,10.7113]
[1753535100692,2.61542,3746.2,3746.1,10.7113]
[1753535100897,2.76672,3746.2,3746.1,4.21]
[1753535101097,2.76672,3746.2,3746.1,4.8365]
[1753535101803,2.0817,3746.2,3746.1,7.5035]
[1753535102103,2.61542,3746.2,3746.1,4.8365]
[1753535102303,2.76672,3746.2,3746.1,4.8365]
[1753535103203,2.61542,3746.2,3746.1,7.5035]
[1753535103403,2.76672,3746.2,3746.1,4.8365]
[1753535103607,2.76672,3746.2,3746.1,4.0159]
[1753535103902,7.76672,3746.2,3746.1,3.0213]
[1753535104200,6.52712,3746.2,3746.1,1.68028]
[1753535106501,6.52712,3746.2,3746.1,0.34557638]
[1753535107104,0.53378,3745.8,3745.7,5.6]
[1753535107304,3.74158,3745.8,3745.7,3.8]
[1753535108302,3.74158,3745.8,3745.7,4.4265]
[1753535108602,0.53373,3746.2,3746.1,0.7733]
[1753535108809,0.53373,3746.2,3746.1,7.0635]
[1753535109100,0.74425994,3746.2,3746.1,7.0635]
[1753535109304,0.74425994,3746.2,3746.1,5.0555]
[1753535109305,1.27797994,3746.2,3746.1,5.0555]
[1753535110011,1.27797994,3746.2,3746.1,7.0635]
[1753535110199,1.27797994,3746.2,3746.1,4.781]
[1753535110401,1.27797994,3746.2,3746.1,4.3965]
[1753535110606,1.27797994,3746.2,3746.1,5.568]
[1753535110804,1.27797994,3746.2,3746.1,7.0635]
[1753535113610,0.74425994,3746.2,3746.1,7.0635]
[1753535113806,1.27797994,3746.2,3746.1,7.0635]
[1753535114512,0.74425994,3746.2,3746.1,7.0635]
[1753535114713,1.27797994,3746.2,3746.1,7.0635]
[1753535114916,0.74425994,3746.2,3746.1,7.0635]
[1753535115209,1.27797994,3746.2,3746.1,7.0635]
[1753535116309,1.30757994,3746.2,3746.1,7.0635]
[1753535117011,1.30757994,3746.2,3746.1,7.0560986]
[1753535118218,1.50487994,3746.2,3746.1,7.0560986]
[1753535118514,1.53437994,3746.2,3746.1,4.3890986]
[1753535118709,6.53437994,3746.2,3746.1,1.66497728]
[1753535118913,0.53378,3745.8,3745.7,6.06879596]